[Event "Manisa Yunusemre IM Norm 2019"]
[Site "Manisa"]
[Date "2019.05.01"]
[Round "5.1"]
[White "Simantsev, Mikhail"]
[Black "Metin, Oguz"]
[Result "1-0"]
[ECO "E32"]
[WhiteElo "2395"]
[BlackElo "2058"]
[Annotator "NA"]
[PlyCount "75"]
[EventDate "2019.04.30"]
[EventCountry "TUR"]
[SourceTitle "playchess.com"]
[Source "ChessBase"]
[SourceQuality "1"]
[TimeControl "5400+30"]

1. d4 {[%emt 0:02:30]} Nf6 {[%emt 0:03:30]} 2. c4 {[%emt 0:00:00]} e6 {[%emt 0:00:30]} 3. Nf3 {[%emt 0:00:00]} b6 {[%emt 0:00:30]} 4. Nc3 {[%emt 0:00:30]} Bb7 {[%emt 0:00:30]} 5. Qc2 {[%emt 0:01:30]} Bb4 {[%emt 0:00:30]} 6. a3 {[%emt 0:00:30]} Bxc3+ {[%emt 0:00:30]} 7. Qxc3 {[%emt 0:00:30]} Ne4 {[%emt 0:01:30]} 8. Qc2 {[%emt 0:02:30]} O-O {[%emt 0:01:30]} 9. e3 {[%emt 0:03:30]} f5 {[%emt 0:00:30]} 10. Be2 {[%emt 0:03:30]} d6 {[%emt 0:00:30]} 11. b3 {[%emt 0:02:30]} Nd7 {[%emt 0:07:30]} 12. Bb2 {[%emt 0:02:30]} Rf6 {[%emt 0:01:30]} 13. d5 {[%emt 0:05:30]} e5 {[%emt 0:03:30]} 14. g3 {[%emt 0:17:30]} a5 {[%emt 0:10:30]} 15. Nh4 {[%emt 0:12:30]} g6 {[%emt 0:06:30]} 16. f3 {[%emt 0:03:30]} Nec5 {[%emt 0:04:30]} 17. O-O {[%emt 0:02:30]} Nf8 {[%emt 0:08:30]} 18. f4 {[%emt 0:01:30]} Ncd7 {[%emt 0:02:30]} 19. e4 {[%emt 0:02:30]} exf4 {[%emt 0:05:30]} 20. gxf4 {[%emt 0:18:05]} fxe4 {[%emt 0:04:30]} 21. Bxf6 {[%emt 0:01:15]} Qxf6 {[%emt 0:00:30]} 22. Ng2 {[%emt 0:00:05]} Nc5 {[%emt 0:07:30]} 23. Rad1 {[%emt 0:00:58]} Re8 {[%emt 0:02:30]} 24. b4 {[%emt 0:03:00]} Ncd7 {[%emt 0:01:30]} 25. Ne3 {[%emt 0:00:18]} Bc8 {[%emt 0:01:30]} 26. Kh1 {[%emt 0:02:17]} Qh4 {[%emt 0:01:30]} 27. Qc3 {[%emt 0:02:23]} Re7 {[%emt 0:07:49]} 28. Bg4 {[%emt 0:04:23]} h5 {[%emt 0:01:51]} 29. Be6+ {[%emt 0:01:59]} Nxe6 {[%emt 0:00:55]} 30. dxe6 {[%emt 0:01:43]} Rxe6 {[%emt 0:00:23]} 31. f5 {[%emt 0:00:25]} Re5 {[%emt 0:00:39]} 32. fxg6 {[%emt 0:00:57]} Nf6 {[%emt 0:00:09]} 33. Rd2 {[%emt 0:02:39]} Bh3 {[%emt 0:00:28]} 34. Ng2 {[%emt 0:00:32]} Bxg2+ {[%emt 0:02:15]} 35. Rxg2 {[%emt 0:00:07]} e3 {[%emt 0:00:07]} 36. Qd3 {[%emt 0:00:22]} Ng4 {[%emt 0:00:56]} 37. g7 {[%emt 0:00:20]} Qh3 {[%emt 0:02:50]} 38. Qg6 {[%emt 0:00:36]} 1-0

[Event "Manisa Yunusemre IM Norm 2019"]
[Site "Manisa"]
[Date "2019.05.01"]
[Round "5.2"]
[White "Morozov, Nichita"]
[Black "Nalbant, Tuna Onat"]
[Result "1/2-1/2"]
[ECO "D14"]
[WhiteElo "2398"]
[BlackElo "2354"]
[Annotator "NA"]
[PlyCount "61"]
[EventDate "2019.04.30"]
[EventCountry "TUR"]
[SourceTitle "playchess.com"]
[Source "ChessBase"]
[SourceQuality "1"]
[TimeControl "5400+30"]

1. d4 {[%emt 0:00:30]} Nf6 {[%emt 0:00:30]} 2. Nf3 {[%emt 0:00:00]} d5 {[%emt 0:00:30]} 3. c4 {[%emt 0:00:00]} c6 {[%emt 0:00:00]} 4. cxd5 {[%emt 0:00:00]} cxd5 {[%emt 0:00:00]} 5. Nc3 {[%emt 0:00:00]} Nc6 {[%emt 0:00:30]} 6. Bf4 {[%emt 0:00:00]} Bf5 {[%emt 0:00:30]} 7. e3 {[%emt 0:02:00]} e6 {[%emt 0:00:30]} 8. Bd3 {[%emt 0:00:00]} Bg6 {[%emt 0:00:30]} 9. O-O {[%emt 0:00:00]} Bd6 {[%emt 0:00:00]} 10. Bg3 {[%emt 0:00:00]} O-O {[%emt 0:00:00]} 11. Bxg6 {[%emt 0:00:00]} hxg6 {[%emt 0:00:30]} 12. Rc1 {[%emt 0:00:30]} Bxg3 {[%emt 0:00:30]} 13. hxg3 {[%emt 0:00:00]} Rc8 {[%emt 0:01:30]} 14. a3 {[%emt 0:01:00]} Ne7 {[%emt 0:02:30]} 15. Ne2 {[%emt 0:00:00]} Rxc1 {[%emt 0:00:30]} 16. Qxc1 {[%emt 0:00:00]} Ne4 {[%emt 0:00:30]} 17. Nd2 {[%emt 0:00:30]} Nxd2 {[%emt 0:00:00]} 18. Qxd2 {[%emt 0:00:00]} Qd7 {[%emt 0:00:00]} 19. Rc1 {[%emt 0:00:00]} Rc8 {[%emt 0:00:30]} 20. Rxc8+ {[%emt 0:00:00]} Qxc8 {[%emt 0:00:30]} 21. Qc1 {[%emt 0:00:00]} Kf8 {[%emt 0:00:30]} 22. Kf1 {[%emt 0:00:30]} Qxc1+ {[%emt 0:00:30]} 23. Nxc1 {[%emt 0:00:00]} Nc8 {[%emt 0:00:30]} 24. Ke2 {[%emt 0:00:00]} Ke7 {[%emt 0:00:30]} 25. Kd3 {[%emt 0:00:30]} Kd6 {[%emt 0:00:30]} 26. Nb3 {[%emt 0:00:30]} g5 {[%emt 0:01:30]} 27. g4 {[%emt 0:00:00]} Ne7 {[%emt 0:00:30]} 28. Nd2 {[%emt 0:00:00]} f6 {[%emt 0:00:30]} 29. f3 {[%emt 0:00:30]} b6 {[%emt 0:00:30]} 30. g3 {[%emt 0:00:00]} g6 {[%emt 0:00:30]} 31. f4 {[%emt 0:00:00]} 1/2-1/2

[Event "Manisa Yunusemre IM Norm 2019"]
[Site "Manisa"]
[Date "2019.05.01"]
[Round "5.3"]
[White "Kukov, Velislav"]
[Black "Ozen, Bahadir"]
[Result "0-1"]
[ECO "D02"]
[WhiteElo "2351"]
[BlackElo "2328"]
[Annotator "NA"]
[PlyCount "60"]
[EventDate "2019.04.30"]
[EventCountry "TUR"]
[SourceTitle "playchess.com"]
[Source "ChessBase"]
[SourceQuality "1"]
[TimeControl "5400+30"]

1. d4 {[%emt 0:00:30]} d5 {[%emt 0:00:30]} 2. Bf4 {[%emt 0:00:00]} c5 {[%emt 0:00:30]} 3. e3 {[%emt 0:00:00]} Nc6 {[%emt 0:01:30]} 4. Nf3 {[%emt 0:00:30]} Nf6 {[%emt 0:00:30]} 5. c3 {[%emt 0:00:30]} Qb6 {[%emt 0:01:30]} 6. Qb3 {[%emt 0:09:30]} c4 {[%emt 0:02:30]} 7. Qxb6 {[%emt 0:04:30]} axb6 {[%emt 0:00:30]} 8. Na3 {[%emt 0:00:00]} Bf5 {[%emt 0:22:30]} 9. Be2 {[%emt 0:01:00]} e6 {[%emt 0:02:30]} 10. Nb5 {[%emt 0:00:00]} Ra5 {[%emt 0:02:30]} 11. Nd6+ {[%emt 0:03:00]} Bxd6 {[%emt 0:00:30]} 12. Bxd6 {[%emt 0:00:00]} Ne4 {[%emt 0:02:30]} 13. Bg3 {[%emt 0:12:00]} Rb5 {[%emt 0:03:30]} 14. O-O-O {[%emt 0:06:30]} Ke7 {[%emt 0:02:30]} 15. Nh4 {[%emt 0:11:30]} Ra8 {[%emt 0:01:30]} 16. Nxf5+ {[%emt 0:07:30]} exf5 {[%emt 0:00:30]} 17. a3 {[%emt 0:00:30]} Nxc3 {[%emt 0:06:30]} 18. bxc3 {[%emt 0:02:30]} Rxa3 {[%emt 0:00:30]} 19. Kd2 {[%emt 0:00:30]} Rb2+ {[%emt 0:00:30]} 20. Ke1 {[%emt 0:00:30]} Rxc3 {[%emt 0:00:30]} 21. Bf3 {[%emt 0:07:30]} Nb4 {[%emt 0:03:30]} 22. Kf1 {[%emt 0:03:30]} Ke6 {[%emt 0:03:30]} 23. h4 {[%emt 0:03:30]} Nd3 {[%emt 0:03:30]} 24. Kg1 {[%emt 0:01:30]} b5 {[%emt 0:00:30]} 25. Kh2 {[%emt 0:00:30]} b4 {[%emt 0:01:30]} 26. Ra1 {[%emt 0:01:30]} Ra3 {[%emt 0:01:30]} 27. Rhd1 {[%emt 0:00:30]} Rxa1 {[%emt 0:02:30]} 28. Rxa1 {[%emt 0:00:00]} c3 {[%emt 0:00:00]} 29. Ra5 {[%emt 0:01:00]} c2 {[%emt 0:01:00]} 30. Bxd5+ {[%emt 0:00:30]} Ke7 {[%emt 0:00:30]} 0-1

[Event "Manisa Yunusemre IM Norm 2019"]
[Site "Manisa"]
[Date "2019.05.01"]
[Round "5.4"]
[White "Mammadova, Narmin"]
[Black "Akin, Kadir"]
[Result "1/2-1/2"]
[ECO "B22"]
[WhiteElo "2292"]
[BlackElo "2033"]
[Annotator "NA"]
[PlyCount "52"]
[EventDate "2019.04.30"]
[EventCountry "TUR"]
[SourceTitle "playchess.com"]
[Source "ChessBase"]
[SourceQuality "1"]
[TimeControl "5400+30"]

1. e4 {[%emt 0:00:30]} c5 {[%emt 0:01:30]} 2. c3 {[%emt 0:00:00]} d5 {[%emt 0:00:30]} 3. exd5 {[%emt 0:00:00]} Qxd5 {[%emt 0:00:30]} 4. d4 {[%emt 0:00:30]} Nc6 {[%emt 0:00:00]} 5. Nf3 {[%emt 0:00:30]} Bg4 {[%emt 0:00:00]} 6. Be2 {[%emt 0:00:30]} e6 {[%emt 0:00:30]} 7. O-O {[%emt 0:01:30]} Nf6 {[%emt 0:00:00]} 8. Be3 {[%emt 0:02:30]} cxd4 {[%emt 0:01:00]} 9. Nxd4 {[%emt 0:03:30]} Bxe2 {[%emt 0:03:30]} 10. Qxe2 {[%emt 0:00:30]} Nxd4 {[%emt 0:02:30]} 11. Bxd4 {[%emt 0:00:30]} Rd8 {[%emt 0:12:30]} 12. Bxa7 {[%emt 0:15:30]} Bd6 {[%emt 0:04:30]} 13. Bd4 {[%emt 0:13:30]} O-O {[%emt 0:01:30]} 14. Nd2 {[%emt 0:02:30]} e5 {[%emt 0:00:30]} 15. Bb6 {[%emt 0:02:30]} Rc8 {[%emt 0:01:30]} 16. Rfd1 {[%emt 0:02:30]} Qc6 {[%emt 0:01:30]} 17. Be3 {[%emt 0:00:30]} Nd5 {[%emt 0:01:30]} 18. Ne4 {[%emt 0:21:30]} Bc7 {[%emt 0:01:30]} 19. Ng5 {[%emt 0:06:30]} f5 {[%emt 0:00:30]} 20. c4 {[%emt 0:05:10]} Nxe3 {[%emt 0:02:30]} 21. Qxe3 {[%emt 0:07:20]} Qxc4 {[%emt 0:00:30]} 22. Rac1 {[%emt 0:00:15]} Qxa2 {[%emt 0:00:30]} 23. Ra1 {[%emt 0:00:05]} Qc4 {[%emt 0:00:00]} 24. Rac1 {[%emt 0:00:02]} Qa2 {[%emt 0:00:00]} 25. Ra1 {[%emt 0:00:03]} Qc4 {[%emt 0:00:00]} 26. Rac1 {[%emt 0:00:03]} Qa2 {[%emt 0:00:00]} 1/2-1/2

[Event "Manisa Yunusemre IM Norm 2019"]
[Site "Manisa"]
[Date "2019.05.01"]
[Round "5.5"]
[White "Guseynov, Alihan"]
[Black "Abdullayev, Azer"]
[Result "1-0"]
[ECO "D36"]
[WhiteElo "2340"]
[BlackElo "2074"]
[Annotator "NA"]
[PlyCount "61"]
[EventDate "2019.04.30"]
[EventCountry "TUR"]
[SourceTitle "playchess.com"]
[Source "ChessBase"]
[SourceQuality "1"]
[TimeControl "5400+30"]

1. d4 {[%emt 0:00:30]} d5 {[%emt 0:00:30]} 2. c4 {[%emt 0:00:00]} e6 {[%emt 0:00:00]} 3. Nc3 {[%emt 0:00:00]} Nf6 {[%emt 0:00:00]} 4. cxd5 {[%emt 0:01:30]} exd5 {[%emt 0:00:00]} 5. Bg5 {[%emt 0:00:30]} Be7 {[%emt 0:00:00]} 6. e3 {[%emt 0:00:00]} c6 {[%emt 0:00:30]} 7. Bd3 {[%emt 0:00:00]} Nbd7 {[%emt 0:00:00]} 8. Qc2 {[%emt 0:01:30]} O-O {[%emt 0:00:00]} 9. Nge2 {[%emt 0:00:30]} Re8 {[%emt 0:01:30]} 10. O-O {[%emt 0:00:30]} h6 {[%emt 0:00:00]} 11. Bf4 {[%emt 0:05:30]} Nf8 {[%emt 0:04:00]} 12. Rab1 {[%emt 0:06:30]} Ne6 {[%emt 0:01:30]} 13. Bg3 {[%emt 0:01:30]} g6 {[%emt 0:23:30]} 14. Kh1 {[%emt 0:17:30]} Ng7 {[%emt 0:02:30]} 15. f3 {[%emt 0:01:30]} Bd6 {[%emt 0:01:30]} 16. Bf2 {[%emt 0:01:30]} Bc7 {[%emt 0:07:30]} 17. Bg1 {[%emt 0:10:30]} h5 {[%emt 0:08:30]} 18. e4 {[%emt 0:09:30]} dxe4 {[%emt 0:00:30]} 19. fxe4 {[%emt 0:00:30]} h4 {[%emt 0:11:30]} 20. e5 {[%emt 0:08:30]} Nfh5 {[%emt 0:00:30]} 21. h3 {[%emt 0:00:30]} Be6 {[%emt 0:14:30]} 22. Rf3 {[%emt 0:07:30]} g5 {[%emt 0:13:49]} 23. Rbf1 {[%emt 0:07:32]} g4 {[%emt 0:00:50]} 24. hxg4 {[%emt 0:00:11]} Bxg4 {[%emt 0:00:14]} 25. Bc4 {[%emt 0:05:02]} Bxf3 {[%emt 0:08:34]} 26. Rxf3 {[%emt 0:00:08]} Re6 {[%emt 0:00:27]} 27. Ne4 {[%emt 0:04:39]} a6 {[%emt 0:00:35]} 28. Be3 {[%emt 0:01:28]} Ng3+ {[%emt 0:00:26]} 29. N2xg3 {[%emt 0:02:50]} hxg3 {[%emt 0:00:02]} 30. Bxe6 {[%emt 0:01:23]} Qh4+ {[%emt 0:00:52]} 31. Bh3 {[%emt 0:00:13]} 1-0

[Event "Manisa Yunusemre IM Norm 2019"]
[Site "Manisa"]
[Date "2019.05.02"]
[Round "7.2"]
[White "Morozov, Nichita"]
[Black "Akin, Kadir"]
[Result "1-0"]
[ECO "A07"]
[WhiteElo "2398"]
[BlackElo "2033"]
[Annotator "NA"]
[PlyCount "101"]
[EventDate "2019.04.30"]
[EventCountry "TUR"]
[SourceTitle "playchess.com"]
[Source "ChessBase"]
[SourceQuality "1"]
[TimeControl "5400+30"]

1. Nf3 {[%emt 0:00:30]} d5 {[%emt 0:00:30]} 2. g3 {[%emt 0:00:00]} Nf6 {[%emt 0:00:30]} 3. Bg2 {[%emt 0:00:00]} c6 {[%emt 0:00:30]} 4. O-O {[%emt 0:00:00]} Bg4 {[%emt 0:00:30]} 5. d3 {[%emt 0:01:00]} Nbd7 {[%emt 0:02:30]} 6. h3 {[%emt 0:01:30]} Bxf3 {[%emt 0:00:00]} 7. Bxf3 {[%emt 0:00:00]} e6 {[%emt 0:07:00]} 8. Bg2 {[%emt 0:00:00]} Qb6 {[%emt 0:01:30]} 9. Nd2 {[%emt 0:01:30]} Bd6 {[%emt 0:00:30]} 10. Kh1 {[%emt 0:04:30]} O-O {[%emt 0:10:30]} 11. c4 {[%emt 0:02:30]} Rfe8 {[%emt 0:03:30]} 12. b3 {[%emt 0:01:30]} a5 {[%emt 0:00:30]} 13. a3 {[%emt 0:02:30]} e5 {[%emt 0:05:30]} 14. Bb2 {[%emt 0:00:30]} Bf8 {[%emt 0:04:30]} 15. Qc2 {[%emt 0:03:30]} h6 {[%emt 0:05:30]} 16. Rab1 {[%emt 0:02:30]} Rac8 {[%emt 0:05:30]} 17. e3 {[%emt 0:02:30]} Qa6 {[%emt 0:02:30]} 18. Rbc1 {[%emt 0:11:30]} b5 {[%emt 0:04:30]} 19. Qb1 {[%emt 0:00:00]} b4 {[%emt 0:00:30]} 20. a4 {[%emt 0:00:00]} Bd6 {[%emt 0:04:30]} 21. Nf3 {[%emt 0:06:30]} Bb8 {[%emt 0:02:30]} 22. Qc2 {[%emt 0:06:30]} Qb7 {[%emt 0:07:30]} 23. Nh4 {[%emt 0:01:30]} g6 {[%emt 0:08:30]} 24. Nf3 {[%emt 0:02:30]} Kh7 {[%emt 0:00:30]} 25. Nd2 {[%emt 0:00:30]} Qa6 {[%emt 0:01:30]} 26. Rce1 {[%emt 0:00:30]} Nh5 {[%emt 0:02:13]} 27. Qd1 {[%emt 0:04:30]} f5 {[%emt 0:04:38]} 28. cxd5 {[%emt 0:01:30]} cxd5 {[%emt 0:01:08]} 29. Bxd5 {[%emt 0:00:00]} Qxd3 {[%emt 0:00:05]} 30. Nc4 {[%emt 0:00:00]} Nc5 {[%emt 0:04:47]} 31. Qxd3 {[%emt 0:02:30]} Nxd3 {[%emt 0:00:07]} 32. Rb1 {[%emt 0:03:30]} Rc5 {[%emt 0:03:26]} 33. Bf3 {[%emt 0:01:30]} Nf6 {[%emt 0:04:34]} 34. Ba1 {[%emt 0:01:30]} Nd7 {[%emt 0:02:58]} 35. Be2 {[%emt 0:00:30]} Rd5 {[%emt 0:00:20]} 36. Bxd3 {[%emt 0:13:30]} Rxd3 {[%emt 0:00:02]} 37. Nxa5 {[%emt 0:00:30]} Nc5 {[%emt 0:00:01]} 38. Kg2 {[%emt 0:00:30]} Ne4 {[%emt 0:02:39]} 39. Nc6 {[%emt 0:03:30]} Nc3 {[%emt 0:00:31]} 40. Nxb4 {[%emt 0:00:30]} Nxb1 {[%emt 0:00:13]} 41. Nxd3 {[%emt 0:00:00]} Nd2 {[%emt 0:00:01]} 42. Rd1 {[%emt 0:03:00]} Nxb3 {[%emt 0:00:02]} 43. Bc3 {[%emt 0:00:30]} Rd8 {[%emt 0:00:43]} 44. Rb1 {[%emt 0:00:00]} Rxd3 {[%emt 0:00:28]} 45. Rxb3 {[%emt 0:00:00]} h5 {[%emt 0:01:32]} 46. Rb7+ {[%emt 0:00:30]} Kh6 {[%emt 0:00:11]} 47. Bb4 {[%emt 0:00:00]} Rd8 {[%emt 0:00:31]} 48. Be7 {[%emt 0:00:00]} Rc8 {[%emt 0:00:07]} 49. h4 {[%emt 0:00:30]} Bc7 {[%emt 0:01:09]} 50. a5 {[%emt 0:00:30]} Bd8 {[%emt 0:00:33]} 51. Bf8# {[%emt 0:00:00]} 1-0

[Event "Manisa Yunusemre IM Norm 2019"]
[Site "Manisa"]
[Date "2019.05.02"]
[Round "7.3"]
[White "Kukov, Velislav"]
[Black "Abdullayev, Azer"]
[Result "1-0"]
[ECO "D78"]
[WhiteElo "2351"]
[BlackElo "2074"]
[Annotator "NA"]
[PlyCount "83"]
[EventDate "2019.04.30"]
[EventCountry "TUR"]
[SourceTitle "playchess.com"]
[Source "ChessBase"]
[SourceQuality "1"]
[TimeControl "5400+30"]

1. Nf3 {[%emt 0:00:30]} d5 {[%emt 0:00:30]} 2. g3 {[%emt 0:00:00]} g6 {[%emt 0:00:00]} 3. Bg2 {[%emt 0:00:00]} Bg7 {[%emt 0:00:00]} 4. d4 {[%emt 0:00:30]} Nf6 {[%emt 0:00:00]} 5. c4 {[%emt 0:00:30]} c6 {[%emt 0:00:00]} 6. O-O {[%emt 0:00:30]} O-O {[%emt 0:00:30]} 7. Qa4 {[%emt 0:10:30]} Ne4 {[%emt 0:01:30]} 8. Nc3 {[%emt 0:02:30]} Nd7 {[%emt 0:02:30]} 9. cxd5 {[%emt 0:09:30]} Nxc3 {[%emt 0:02:30]} 10. bxc3 {[%emt 0:00:00]} cxd5 {[%emt 0:00:30]} 11. Qb3 {[%emt 0:02:00]} Qa5 {[%emt 0:08:30]} 12. Bd2 {[%emt 0:02:30]} Nb6 {[%emt 0:00:30]} 13. Ne5 {[%emt 0:19:30]} Be6 {[%emt 0:09:30]} 14. Rfd1 {[%emt 0:06:30]} Rac8 {[%emt 0:21:30]} 15. Nd3 {[%emt 0:02:30]} Nc4 {[%emt 0:03:30]} 16. Be1 {[%emt 0:05:30]} Bg4 {[%emt 0:25:30]} 17. Nf4 {[%emt 0:06:30]} e6 {[%emt 0:08:51]} 18. f3 {[%emt 0:06:30]} Bf5 {[%emt 0:00:14]} 19. g4 {[%emt 0:00:30]} g5 {[%emt 0:01:58]} 20. Nxd5 {[%emt 0:05:55]} exd5 {[%emt 0:00:34]} 21. gxf5 {[%emt 0:00:10]} Rce8 {[%emt 0:01:17]} 22. e4 {[%emt 0:00:36]} Ne3 {[%emt 0:08:28]} 23. c4 {[%emt 0:02:38]} Nxd1 {[%emt 0:00:04]} 24. Bxa5 {[%emt 0:00:04]} Bxd4+ {[%emt 0:00:04]} 25. Kf1 {[%emt 0:00:27]} Ne3+ {[%emt 0:00:17]} 26. Ke2 {[%emt 0:00:57]} dxc4 {[%emt 0:02:21]} 27. Qxe3 {[%emt 0:04:13]} Bxe3 {[%emt 0:00:12]} 28. Kxe3 {[%emt 0:00:01]} Rc8 {[%emt 0:01:07]} 29. Bc3 {[%emt 0:04:52]} f6 {[%emt 0:00:32]} 30. f4 {[%emt 0:02:02]} Rfd8 {[%emt 0:01:19]} 31. Bf1 {[%emt 0:00:20]} gxf4+ {[%emt 0:00:16]} 32. Kxf4 {[%emt 0:00:06]} Kf7 {[%emt 0:00:10]} 33. Be2 {[%emt 0:00:08]} Rc6 {[%emt 0:01:12]} 34. Rg1 {[%emt 0:00:47]} Rd3 {[%emt 0:00:32]} 35. Bxd3 {[%emt 0:02:05]} cxd3 {[%emt 0:00:04]} 36. Bd2 {[%emt 0:01:13]} Rc2 {[%emt 0:00:18]} 37. Ke3 {[%emt 0:00:05]} Rxa2 {[%emt 0:00:04]} 38. Rb1 {[%emt 0:01:20]} b6 {[%emt 0:00:08]} 39. Kxd3 {[%emt 0:00:17]} Ra4 {[%emt 0:01:54]} 40. Bc3 {[%emt 0:00:17]} Ra2 {[%emt 0:00:30]} 41. Ra1 {[%emt 0:00:16]} Rxa1 {[%emt 0:00:30]} 42. Bxa1 {[%emt 0:00:02]} 1-0

[Event "Manisa Yunusemre IM Norm 2019"]
[Site "Manisa"]
[Date "2019.05.02"]
[Round "7.4"]
[White "Mammadova, Narmin"]
[Black "Metin, Oguz"]
[Result "1-0"]
[ECO "B06"]
[WhiteElo "2292"]
[BlackElo "2058"]
[Annotator "NA"]
[PlyCount "117"]
[EventDate "2019.04.30"]
[EventCountry "TUR"]
[SourceTitle "playchess.com"]
[Source "ChessBase"]
[SourceQuality "1"]
[TimeControl "5400+30"]

1. e4 {[%emt 0:00:30]} c5 {[%emt 0:08:30]} 2. c3 {[%emt 0:00:00]} d5 {[%emt 0:00:30]} 3. exd5 {[%emt 0:00:00]} Qxd5 {[%emt 0:00:30]} 4. d4 {[%emt 0:00:00]} g6 {[%emt 0:00:00]} 5. Be3 {[%emt 0:01:00]} cxd4 {[%emt 0:01:00]} 6. Na3 {[%emt 0:00:30]} Bg7 {[%emt 0:02:30]} 7. Nb5 {[%emt 0:00:30]} Na6 {[%emt 0:00:30]} 8. Nf3 {[%emt 0:00:30]} Nh6 {[%emt 0:01:30]} 9. Bxd4 {[%emt 0:05:30]} Bxd4 {[%emt 0:04:30]} 10. Qxd4 {[%emt 0:02:30]} Qxd4 {[%emt 0:00:00]} 11. Nfxd4 {[%emt 0:03:30]} O-O {[%emt 0:02:00]} 12. Be2 {[%emt 0:07:30]} Nc5 {[%emt 0:02:30]} 13. Nb3 {[%emt 0:13:30]} Nxb3 {[%emt 0:04:30]} 14. axb3 {[%emt 0:00:00]} a6 {[%emt 0:00:30]} 15. Nc7 {[%emt 0:10:00]} Rb8 {[%emt 0:00:30]} 16. O-O-O {[%emt 0:03:30]} Nf5 {[%emt 0:08:30]} 17. Nd5 {[%emt 0:18:30]} Be6 {[%emt 0:02:30]} 18. Kc2 {[%emt 0:09:30]} Rfd8 {[%emt 0:06:30]} 19. Nf4 {[%emt 0:02:30]} Bd7 {[%emt 0:01:30]} 20. Bf3 {[%emt 0:05:27]} Nd6 {[%emt 0:00:30]} 21. Rhe1 {[%emt 0:01:49]} Kf8 {[%emt 0:00:30]} 22. Nd5 {[%emt 0:02:14]} Bf5+ {[%emt 0:00:30]} 23. Kc1 {[%emt 0:00:04]} Be6 {[%emt 0:00:30]} 24. g4 {[%emt 0:04:08]} Bxd5 {[%emt 0:05:30]} 25. Rxd5 {[%emt 0:01:42]} e6 {[%emt 0:00:30]} 26. Rd4 {[%emt 0:00:39]} Ke7 {[%emt 0:00:30]} 27. Bd1 {[%emt 0:03:35]} Rbc8 {[%emt 0:03:30]} 28. f4 {[%emt 0:00:53]} Ne8 {[%emt 0:05:30]} 29. Rb4 {[%emt 0:01:02]} Rc7 {[%emt 0:01:30]} 30. f5 {[%emt 0:00:28]} Rd6 {[%emt 0:00:30]} 31. Bc2 {[%emt 0:02:32]} b5 {[%emt 0:00:00]} 32. h3 {[%emt 0:01:22]} Rc5 {[%emt 0:00:00]} 33. Rf4 {[%emt 0:00:32]} g5 {[%emt 0:00:30]} 34. Rf2 {[%emt 0:00:30]} h6 {[%emt 0:00:30]} 35. Rfe2 {[%emt 0:00:28]} Nc7 {[%emt 0:02:30]} 36. b4 {[%emt 0:00:24]} Rcd5 {[%emt 0:00:30]} 37. Rh1 {[%emt 0:00:29]} Kf8 {[%emt 0:00:30]} 38. Rhe1 {[%emt 0:00:40]} Ke7 {[%emt 0:01:30]} 39. Rf1 {[%emt 0:00:11]} f6 {[%emt 0:00:30]} 40. Rfe1 {[%emt 0:00:26]} e5 {[%emt 0:00:30]} 41. Be4 {[%emt 0:00:02]} Rd3 {[%emt 0:00:30]} 42. Bxd3 {[%emt 0:00:05]} Rxd3 {[%emt 0:00:00]} 43. Re3 {[%emt 0:00:13]} Rxe3 {[%emt 0:01:00]} 44. Rxe3 {[%emt 0:00:00]} Nd5 {[%emt 0:00:00]} 45. Re1 {[%emt 0:02:22]} Nf4 {[%emt 0:00:00]} 46. Rh1 {[%emt 0:00:33]} e4 {[%emt 0:01:30]} 47. Kd2 {[%emt 0:00:13]} Kd6 {[%emt 0:00:00]} 48. Ke3 {[%emt 0:00:50]} Ke5 {[%emt 0:00:00]} 49. Ra1 {[%emt 0:00:36]} Nd5+ {[%emt 0:00:30]} 50. Ke2 {[%emt 0:00:25]} Nf4+ {[%emt 0:01:30]} 51. Ke3 {[%emt 0:00:01]} Nd5+ {[%emt 0:00:00]} 52. Kf2 {[%emt 0:00:15]} Nc7 {[%emt 0:01:00]} 53. Ke2 {[%emt 0:01:02]} h5 {[%emt 0:00:30]} 54. gxh5 {[%emt 0:00:12]} Kxf5 {[%emt 0:00:30]} 55. Rf1+ {[%emt 0:00:08]} Ke6 {[%emt 0:00:30]} 56. h6 {[%emt 0:00:07]} Kf7 {[%emt 0:00:30]} 57. h7 {[%emt 0:00:15]} Kg7 {[%emt 0:00:00]} 58. Rxf6 {[%emt 0:00:07]} Kxh7 {[%emt 0:00:00]} 59. Rf7+ {[%emt 0:00:03]} 1-0

[Event "Manisa Yunusemre IM Norm 2019"]
[Site "Manisa"]
[Date "2019.05.02"]
[Round "7.5"]
[White "Guseynov, Alihan"]
[Black "Nalbant, Tuna Onat"]
[Result "1/2-1/2"]
[ECO "D98"]
[WhiteElo "2340"]
[BlackElo "2354"]
[Annotator "NA"]
[PlyCount "60"]
[EventDate "2019.04.30"]
[EventCountry "TUR"]
[SourceTitle "playchess.com"]
[Source "ChessBase"]
[SourceQuality "1"]
[TimeControl "5400+30"]

1. d4 {[%emt 0:00:30]} Nf6 {[%emt 0:00:30]} 2. c4 {[%emt 0:00:30]} g6 {[%emt 0:00:30]} 3. Nc3 {[%emt 0:00:30]} d5 {[%emt 0:00:30]} 4. Nf3 {[%emt 0:01:30]} Bg7 {[%emt 0:03:30]} 5. Qb3 {[%emt 0:08:30]} dxc4 {[%emt 0:02:30]} 6. Qxc4 {[%emt 0:00:30]} O-O {[%emt 0:01:30]} 7. e4 {[%emt 0:00:30]} Nc6 {[%emt 0:01:30]} 8. Be2 {[%emt 0:02:30]} Bg4 {[%emt 0:04:30]} 9. d5 {[%emt 0:01:30]} Na5 {[%emt 0:02:30]} 10. Qb4 {[%emt 0:03:30]} Bxf3 {[%emt 0:02:30]} 11. Bxf3 {[%emt 0:00:30]} c6 {[%emt 0:03:30]} 12. O-O {[%emt 0:01:30]} Qb6 {[%emt 0:06:30]} 13. Qxe7 {[%emt 0:10:30]} Nc4 {[%emt 0:07:30]} 14. dxc6 {[%emt 0:04:30]} bxc6 {[%emt 0:00:30]} 15. Bf4 {[%emt 0:02:30]} Rfe8 {[%emt 0:03:30]} 16. Qc7 {[%emt 0:00:30]} Qxc7 {[%emt 0:02:30]} 17. Bxc7 {[%emt 0:00:30]} Rac8 {[%emt 0:01:30]} 18. Bg3 {[%emt 0:03:30]} Nh5 {[%emt 0:05:30]} 19. Rac1 {[%emt 0:09:30]} Nxg3 {[%emt 0:00:30]} 20. hxg3 {[%emt 0:00:00]} Nxb2 {[%emt 0:03:30]} 21. Rc2 {[%emt 0:01:00]} Nd3 {[%emt 0:04:30]} 22. a3 {[%emt 0:02:30]} Nc5 {[%emt 0:02:30]} 23. Rfc1 {[%emt 0:02:30]} Bxc3 {[%emt 0:02:30]} 24. Rxc3 {[%emt 0:00:00]} Nxe4 {[%emt 0:00:00]} 25. Bxe4 {[%emt 0:00:00]} Rxe4 {[%emt 0:00:00]} 26. Rxc6 {[%emt 0:00:30]} Rxc6 {[%emt 0:00:30]} 27. Rxc6 {[%emt 0:00:00]} Ra4 {[%emt 0:00:00]} 28. Rc3 {[%emt 0:00:00]} Kg7 {[%emt 0:00:00]} 29. f3 {[%emt 0:00:30]} Kf6 {[%emt 0:00:30]} 30. Kf2 {[%emt 0:00:00]} Ke5 {[%emt 0:00:00]} 1/2-1/2